fUST/lending_fUST_20240830
["ID","MTS","AMOUNT","RATE_DAILY","PERIOD"]
[336633276,1724985046125,-500.0,0.00021643,2]
[336633278,1724985046135,-500.0,0.00021643,2]
[336633279,1724985046145,-500.0,0.00021643,2]
[336633280,1724985046154,-1161.98,0.00021643,2]
[336633281,1724985046163,-500.0,0.00021643,2]
[336633282,1724985046172,-500.0,0.00021643,2]
[336633283,1724985046181,-643.25,0.00021643,2]
[336633284,1724985046191,-1003.4,0.00021643,2]
[336633285,1724985046200,-500.0,0.00021643,2]
[336633286,1724985046209,-500.0,0.00021643,2]
[336633287,1724985046219,-500.0,0.00021643,2]
[336633288,1724985046231,-500.0,0.00021643,2]
[336633289,1724985046241,-500.0,0.00021643,2]
[336633290,1724985046251,-500.0,0.00021643,2]
[336633291,1724985046262,-500.0,0.00021643,2]
[336633292,1724985046271,-500.0,0.00021643,2]
[336633294,1724985046281,-500.0,0.00021643,2]
[336633296,1724985046290,-1695.59,0.00021643,2]
[336633298,1724985046299,-1157.42,0.00021643,2]
[336633300,1724985046310,-2823.37,0.00021643,2]
[336633302,1724985046321,-500.0,0.00021643,2]
[336633304,1724985046333,-500.0,0.00021643,2]
[336633305,1724985046342,-929.65,0.00021643,2]
[336633307,1724985046352,-500.0,0.00021643,2]
[336633309,1724985046362,-500.0,0.00021643,2]
[336633311,1724985046372,-553.86327865,0.00021643,2]
[336633313,1724985046381,-2574.6,0.00021643,2]
[336633315,1724985046392,-1181.31,0.00021643,2]
[336633317,1724985046403,-748.14,0.00021643,2]
[336633319,1724985046414,-583.73455971,0.00021643,2]
[336633320,1724985046423,-625.53,0.00021643,2]
[336633322,1724985046432,-500.0,0.00021643,2]
[336633324,1724985046442,-500.0,0.00021643,2]
[336633326,1724985046452,-500.0,0.00021643,2]
[336633328,1724985046464,-1287.91,0.00021643,2]
[336633330,1724985046474,-500.0,0.00021643,2]
[336633332,1724985046484,-852.72,0.00021643,2]
[336633334,1724985046493,-712.59,0.00021643,2]
[336633336,1724985046503,-1443.6,0.00021643,2]
[336633337,1724985046513,-5238.51,0.00021643,2]
[336633339,1724985046526,-606.0,0.000217,2]
[336633341,1724985046536,-300.399,0.0002186,2]
[336633343,1724985046547,-150.182,0.0002186,2]
[336633345,1724985046557,-500.0,0.00021917,2]
[336633347,1724985046566,-600.03,0.00021917,2]
[336633349,1724985046575,-500.0,0.00021917,2]
[336633350,1724985046584,-518.49,0.00021917,2]
[336633352,1724985046594,-616.96179378,0.00021917,2]
[336633354,1724985046603,-500.0,0.00021917,2]
[336633356,1724985046612,-500.0,0.00021917,2]
[336633358,1724985046621,-509.23,0.00021917,2]
[336633360,1724985046630,-500.0,0.00021917,2]
[336633361,1724985046639,-500.0,0.00021917,2]
[336633363,1724985046649,-1439.09,0.00021917,2]
[336633365,1724985046658,-1551.79,0.00021917,2]
[336633366,1724985046667,-500.0,0.00021917,2]
[336633367,1724985046676,-500.0,0.00021917,2]
[336633368,1724985046688,-500.0,0.00021917,2]
[336633369,1724985046698,-1161.98,0.00021917,2]
[336633370,1724985046708,-500.0,0.00021917,2]
[336633371,1724985046718,-500.0,0.00021917,2]
[336633372,1724985046727,-643.25,0.00021917,2]
[336633373,1724985046736,-1003.4,0.00021917,2]
[336633374,1724985046748,-1000.0,0.00021917,30]
[336633375,1724985046758,-1000.0,0.00021917,30]
[336633376,1724985046769,-1000.0,0.00021917,30]
[336633377,1724985046778,-1000.0,0.00021917,30]
[336633378,1724985046788,-1000.0,0.00021917,30]
[336633379,1724985046798,-500.0,0.00021917,2]
[336633380,1724985046807,-511.3847793,0.00021917,30]
[336633381,1724985046817,-500.0,0.00021917,2]
[336633382,1724985046827,-500.0,0.00021917,2]
[336633383,1724985046838,-500.0,0.00021917,2]
[336633384,1724985046849,-500.0,0.00021917,2]
[336633385,1724985046858,-500.0,0.00021917,2]
[336633386,1724985046868,-500.0,0.00021917,2]
[336633387,1724985046879,-500.0,0.00021917,2]
[336633388,1724985046888,-375.43503052,0.00021917,2]
[336633389,1724985046898,-1695.59,0.00021917,2]
[336633390,1724985046908,-1157.42,0.00021917,2]
[336633391,1724985046918,-2823.37,0.00021917,2]
[336633392,1724985046928,-500.0,0.00021917,2]
[336633393,1724985046938,-500.0,0.00021917,2]
[336633394,1724985046947,-929.65,0.00021917,2]
[336633395,1724985046957,-500.0,0.00021917,2]
[336633396,1724985046967,-500.0,0.00021917,2]
[336633397,1724985046977,-2574.6,0.00021917,2]
[336633398,1724985046987,-1181.31,0.00021917,2]
[336633399,1724985046997,-748.14,0.00021917,2]
[336633400,1724985047006,-625.53,0.00021917,2]
[336633401,1724985047016,-500.0,0.00021917,2]
[336633402,1724985047026,-500.0,0.00021917,2]
[336633403,1724985047036,-500.0,0.00021917,2]
[336633404,1724985047046,-1287.91,0.00021917,2]
[336633405,1724985047055,-500.0,0.00021917,2]
[336633406,1724985047065,-852.72,0.00021917,2]
[336633407,1724985047074,-712.59,0.00021917,2]
[336633408,1724985047083,-1443.6,0.00021917,2]
[336633409,1724985047093,-151.0,0.00021917,2]
[336633410,1724985047103,-5238.51,0.00021917,2]
[336633411,1724985047112,-950.08,0.00022,7]
[336633412,1724985047122,-200.0,0.00022,2]
[336633413,1724985047132,-500.0,0.00022008,2]
[336633414,1724985047142,-150.112233,0.000221,5]
[336633415,1724985047151,-600.03,0.00022191,5]
[336633416,1724985047161,-500.0,0.00022191,5]
[336633417,1724985047171,-518.49,0.00022191,5]
[336633418,1724985047180,-242.78239648,0.00022191,5]
[336633419,1724985047190,-500.0,0.00022191,5]
[336633420,1724985047199,-509.23,0.00022191,5]
[336633421,1724985047210,-500.0,0.00022191,5]
[336633422,1724985047219,-500.0,0.00022191,5]
[336633423,1724985047228,-151.0,0.00022191,7]
[336633424,1724985047240,-151.0,0.00022191,7]
[336633425,1724985047251,-151.0,0.00022191,7]
[336633426,1724985047261,-264.688622,0.00022191,7]
[336633427,1724985047271,-151.0,0.00022191,7]
[336633428,1724985047281,-1439.09,0.00022191,5]
[336633429,1724985047290,-1551.79,0.00022191,5]
[336633430,1724985047299,-296.990297,0.00022191,7]
[336633431,1724985047310,-151.0,0.00022191,7]
[336633432,1724985047320,-317.08037397,0.00022191,5]
[336633433,1724985047331,-500.0,0.00022191,5]
[336633434,1724985047343,-151.0,0.00022191,7]
[336633435,1724985047353,-151.0,0.00022191,7]
[336633436,1724985047363,-500.0,0.00022191,5]
[336633437,1724985047373,-1161.98,0.00022191,5]
[336633438,1724985047384,-500.0,0.00022191,5]
[336633439,1724985047393,-198.415403,0.00022191,7]
[336633440,1724985047403,-500.0,0.00022191,5]
[336633441,1724985047412,-643.25,0.00022191,5]
[336633442,1724985047423,-151.726682,0.00022191,7]
[336633443,1724985047432,-1003.4,0.00022191,5]
[336633444,1724985047442,-500.0,0.00022191,5]
[336633445,1724985047451,-151.0,0.00022191,7]
[336633446,1724985047460,-151.0,0.00022191,7]
[336633447,1724985047470,-151.44745,0.00022191,7]
[336633448,1724985047480,-290.65732779,0.00022191,5]
[336633449,1724985047490,-500.0,0.00022191,5]
[336633450,1724985047501,-500.0,0.00022191,5]
[336633451,1724985047511,-500.0,0.00022191,5]
[336633452,1724985047522,-500.0,0.00022191,5]
[336633453,1724985047532,-500.0,0.00022191,5]
[336633454,1724985047543,-500.0,0.00022191,5]
[336633455,1724985047553,-682.200059,0.00022191,7]
[336633456,1724985047565,-682.200059,0.00022191,7]
[336633457,1724985047575,-1695.59,0.00022191,5]
[336633458,1724985047584,-1157.42,0.00022191,5]
[336633459,1724985047594,-151.0,0.00022191,7]
[336633460,1724985047604,-2823.37,0.00022191,5]
[336633461,1724985047614,-500.0,0.00022191,5]
[336633462,1724985047625,-151.0,0.00022191,7]
[336633463,1724985047635,-500.0,0.00022191,5]
[336633464,1724985047644,-929.65,0.00022191,5]
[336633465,1724985047654,-500.0,0.00022191,5]
[336633466,1724985047664,-500.0,0.00022191,5]
[336633467,1724985047675,-2574.6,0.00022191,5]
[336633468,1724985047685,-1181.31,0.00022191,5]
[336633469,1724985047695,-151.0,0.00022191,7]
[336633470,1724985047706,-748.14,0.00022191,5]
[336633471,1724985047717,-151.0,0.00022191,7]
[336633472,1724985047727,-625.53,0.00022191,5]
[336633473,1724985047743,-500.0,0.00022191,5]
[336633474,1724985047753,-500.0,0.00022191,5]
[336633475,1724985047763,-500.0,0.00022191,5]
[336633476,1724985047899,-1287.91,0.00022191,5]
[336633477,1724985047909,-500.0,0.00022191,5]
[336633478,1724985047918,-852.72,0.00022191,5]
[336633479,1724985047928,-712.59,0.00022191,5]
[336633480,1724985047938,-1443.6,0.00022191,5]
[336633481,1724985047948,-5238.51,0.00022191,5]
[336633482,1724985047958,-163.581734,0.00022256,2]
[336633483,1724985047968,-163.581734,0.00022256,2]
[336633484,1724985047977,-174.931623,0.00022256,2]
[336633485,1724985047990,-261.730774,0.00022256,2]
[336633486,1724985048000,-278.155159,0.00022256,2]
[336633487,1724985048010,-173.846975,0.00022256,2]
[336633488,1724985048019,-169.337166,0.00022256,2]
[336633489,1724985048029,-173.846975,0.00022256,2]
[336633490,1724985048039,-600.03,0.00022465,5]
[336633491,1724985048049,-269.59151918,0.00022465,5]
[336633492,1724985048059,-151.0,0.00022465,7]
[336633493,1724985048068,-151.0,0.00022465,7]
[336633494,1724985048079,-518.49,0.00022465,5]
[336633495,1724985048090,-151.810112,0.00022465,7]
[336633496,1724985048100,-151.225372,0.00022465,7]
[336633497,1724985048110,-151.0,0.00022465,7]
[336633498,1724985048119,-500.0,0.00022465,5]
[336633499,1724985048129,-509.23,0.00022465,5]
[336633500,1724985048139,-158.926326,0.00022465,7]
[336633501,1724985048149,-500.0,0.00022465,5]
[336633502,1724985048159,-500.0,0.00022465,5]
[336633503,1724985048168,-1439.09,0.00022465,5]
[336633504,1724985048179,-1551.79,0.00022465,5]
[336633505,1724985048188,-500.0,0.00022465,5]
[336633506,1724985048198,-500.0,0.00022465,5]
[336633507,1724985048208,-1161.98,0.00022465,5]
[336633508,1724985048218,-500.0,0.00022465,5]
[336633509,1724985048228,-500.0,0.00022465,5]
[336633510,1724985048245,-643.25,0.00022465,5]
[336633511,1724985048254,-1003.4,0.00022465,5]
[336633512,1724985048276,-500.0,0.00022465,5]
[336633513,1724985048287,-500.0,0.00022465,5]
[336633514,1724985048297,-500.0,0.00022465,5]
[336633515,1724985048307,-500.0,0.00022465,5]
[336633516,1724985048318,-500.0,0.00022465,5]
[336633517,1724985048328,-500.0,0.00022465,5]
[336633518,1724985048338,-500.0,0.00022465,5]
[336633519,1724985048349,-1695.59,0.00022465,5]
[336633520,1724985048360,-1157.42,0.00022465,5]
[336633521,1724985048370,-2823.37,0.00022465,5]
[336633522,1724985048381,-500.0,0.00022465,5]
[336633523,1724985048392,-427.14194767,0.00022465,5]
[336633524,1724985048403,-929.65,0.00022465,5]
[336633525,1724985048413,-416.63747296,0.00022465,5]
[336633526,1724985048424,-500.0,0.00022465,5]
[336633527,1724985048434,-2574.6,0.00022465,5]
[336633528,1724985048445,-1181.31,0.00022465,5]
[336633529,1724985048455,-748.14,0.00022465,5]
[336633530,1724985048465,-625.53,0.00022465,5]
[336633531,1724985048476,-500.0,0.00022465,5]
[336633532,1724985048490,-500.0,0.00022465,5]
[336633533,1724985048500,-500.0,0.00022465,5]
[336633534,1724985048511,-1287.91,0.00022465,5]
[336633535,1724985048526,-500.0,0.00022465,5]
[336633536,1724985048536,-852.72,0.00022465,5]
[336633537,1724985048547,-712.59,0.00022465,5]
[336633538,1724985048558,-1443.6,0.00022465,5]
[336633539,1724985048568,-5238.51,0.00022465,5]
[336633540,1724985048578,-31338.72,0.000225,14]
[336633541,1724985048589,-1712.24,0.000225,14]
[336633542,1724985048601,-151.0,0.000225,7]
[336633543,1724985048611,-151.389956,0.000225,7]
[336633544,1724985048621,-261.730774,0.00022534,2]
[336633545,1724985048631,-278.155159,0.00022534,2]
[336633546,1724985048643,-1000.0,0.00022556,2]
[336633547,1724985048654,-150.112233,0.000226,4]
[336633548,1724985048664,-163.581734,0.00022627,2]
[336633549,1724985048674,-163.581734,0.00022627,2]
[336633550,1724985048684,-174.931623,0.00022627,2]
[336633551,1724985048694,-173.846975,0.00022627,2]
[336633552,1724985048704,-173.846975,0.00022627,2]
[336633553,1724985048715,-600.03,0.00022739,5]
[336633554,1724985048725,-518.49,0.00022739,5]
[336633555,1724985048738,-500.0,0.00022739,5]
[336633556,1724985048748,-509.23,0.00022739,5]
[336633557,1724985048758,-500.0,0.00022739,5]
[336633558,1724985048768,-500.0,0.00022739,5]
[336633559,1724985048779,-1439.09,0.00022739,5]
[336633560,1724985048789,-1551.79,0.00022739,5]
[336633561,1724985048799,-500.0,0.00022739,5]
[336633562,1724985048808,-500.0,0.00022739,5]
[336633563,1724985048818,-1161.98,0.00022739,5]
[336633564,1724985048827,-500.0,0.00022739,5]
[336633565,1724985048838,-500.0,0.00022739,5]
[336633566,1724985048848,-643.25,0.00022739,5]
[336633567,1724985048859,-1003.4,0.00022739,5]
[336633568,1724985048869,-500.0,0.00022739,5]
[336633569,1724985048879,-500.0,0.00022739,5]
[336633570,1724985048888,-500.0,0.00022739,5]
[336633571,1724985048903,-500.0,0.00022739,5]
[336633572,1724985048913,-202.16594613,0.00022739,5]
[336633573,1724985048922,-500.0,0.00022739,5]
[336633574,1724985048932,-500.0,0.00022739,5]
[336633575,1724985048943,-1695.59,0.00022739,5]
[336633576,1724985048953,-1157.42,0.00022739,5]
[336633577,1724985048963,-2823.37,0.00022739,5]
[336633578,1724985048972,-500.0,0.00022739,5]
[336633579,1724985048983,-929.65,0.00022739,5]
[336633580,1724985048993,-500.0,0.00022739,5]
[336633581,1724985049003,-2574.6,0.00022739,5]
[336633582,1724985049013,-1181.31,0.00022739,5]
[336633583,1724985049024,-748.14,0.00022739,5]
[336633584,1724985049035,-625.53,0.00022739,5]
[336633585,1724985049045,-500.0,0.00022739,5]
[336633586,1724985049055,-500.0,0.00022739,5]
[336633587,1724985049066,-500.0,0.00022739,5]
[336633588,1724985049076,-1287.91,0.00022739,5]
[336633589,1724985049087,-500.0,0.00022739,5]
[336633590,1724985049097,-852.72,0.00022739,5]
[336633591,1724985049107,-712.59,0.00022739,5]
[336633592,1724985049117,-1443.6,0.00022739,5]
[336633593,1724985049127,-5238.51,0.00022739,5]
[336633594,1724985049137,-261.730774,0.00022812,2]
[336633595,1724985049147,-278.155159,0.00022812,2]
[336633596,1724985049157,-278.0,0.0002298,9]
[336633597,1724985049167,-163.581734,0.00022998,2]
[336633598,1724985049176,-163.581734,0.00022998,2]
[336633599,1724985049186,-174.931623,0.00022998,2]
[336633600,1724985049197,-173.846975,0.00022998,2]
[336633601,1724985049207,-173.846975,0.00022998,2]
[336633602,1724985049217,-826.92,0.00023,14]
[336633603,1724985049227,-3192.67177974,0.00023,3]
[336633604,1724985049239,-600.03,0.00023013,5]
[336633605,1724985049249,-518.49,0.00023013,5]
[336633606,1724985049259,-500.0,0.00023013,5]
[336633607,1724985049268,-509.23,0.00023013,5]
[336633608,1724985049279,-500.0,0.00023013,5]
[336633609,1724985049289,-500.0,0.00023013,5]
[336633610,1724985049299,-1439.09,0.00023013,5]
[336633611,1724985049309,-1551.79,0.00023013,5]
[336633612,1724985049319,-500.0,0.00023013,5]
[336633613,1724985049329,-398.49357001,0.00023013,5]
[336633614,1724985049339,-1161.98,0.00023013,5]
[336633615,1724985049348,-500.0,0.00023013,5]
[336633616,1724985049359,-500.0,0.00023013,5]
[336633617,1724985049370,-643.25,0.00023013,5]
[336633618,1724985049380,-1003.4,0.00023013,5]
[336633619,1724985049390,-500.0,0.00023013,5]
[336633620,1724985049401,-151.0,0.00023013,7]
[336633621,1724985049410,-151.0,0.00023013,7]
[336633622,1724985049420,-500.0,0.00023013,5]
[336633623,1724985049431,-500.0,0.00023013,5]
[336633624,1724985049441,-500.0,0.00023013,5]
[336633625,1724985049452,-500.0,0.00023013,5]
[336633626,1724985049462,-500.0,0.00023013,5]
[336633627,1724985049472,-682.200059,0.00023013,7]
[336633628,1724985049484,-682.200059,0.00023013,7]
[336633629,1724985049495,-1695.59,0.00023013,5]
[336633630,1724985049505,-1157.42,0.00023013,5]
[336633631,1724985049515,-151.0,0.00023013,7]
[336633632,1724985049529,-2823.37,0.00023013,5]
[336633633,1724985049543,-166.57589352,0.00023013,5]
[336633634,1724985049554,-151.0,0.00023013,7]
[336633635,1724985049565,-929.65,0.00023013,5]
[336633636,1724985049575,-251.86335061,0.00023013,5]
[336633637,1724985049587,-2574.6,0.00023013,5]
[336633638,1724985049599,-151.0,0.00023013,7]
[336633639,1724985049610,-1181.31,0.00023013,5]
[336633640,1724985049622,-151.0,0.00023013,7]
[336633641,1724985049632,-748.14,0.00023013,5]
[336633642,1724985049642,-625.53,0.00023013,5]
[336633643,1724985049653,-500.0,0.00023013,5]
[336633644,1724985049662,-500.0,0.00023013,5]
[336633645,1724985049673,-594.23184116,0.00023013,5]
[336633646,1724985049683,-1287.91,0.00023013,5]
[336633647,1724985049694,-500.0,0.00023013,5]
[336633648,1724985049705,-712.59,0.00023013,5]
[336633649,1724985049715,-852.72,0.00023013,5]
[336633650,1724985049725,-1443.6,0.00023013,5]
[336633651,1724985049736,-151.88765,0.00023013,7]
[336633652,1724985049747,-5238.51,0.00023013,5]
[336633653,1724985049756,-800.0,0.00023053,2]
[336633654,1724985049766,-261.730774,0.0002309,2]
[336633655,1724985049776,-278.155159,0.0002309,2]
[336633656,1724985049786,-150.112233,0.000231,5]
[336633657,1724985049798,-500.0,0.00023129,2]
[336633658,1724985049809,-500.0,0.00023189,2]
[336633659,1724985049819,-150.0,0.00023213,2]
[336633660,1724985049830,-500.0,0.00023254,2]
[336633661,1724985049839,-600.03,0.00023287,5]
[336633662,1724985049849,-518.49,0.00023287,5]
[336633663,1724985049859,-500.0,0.00023287,5]
[336633664,1724985049870,-509.23,0.00023287,5]
[336633665,1724985049880,-500.0,0.00023287,5]
[336633666,1724985049892,-500.0,0.00023287,5]
[336633667,1724985049902,-153.881707,0.00023287,7]
[336633668,1724985049911,-151.0,0.00023287,7]
[336633669,1724985049921,-152.632223,0.00023287,7]
[336633670,1724985049931,-152.867115,0.00023287,7]
[336633671,1724985049940,-1439.09,0.00023287,5]
[336633672,1724985049950,-1551.79,0.00023287,5]
[336633673,1724985049960,-151.0,0.00023287,7]
[336633674,1724985049970,-257.16214174,0.00023287,5]
[336633675,1724985049980,-151.0,0.00023287,7]
[336633676,1724985049992,-151.0,0.00023287,7]
[336633677,1724985050003,-1161.98,0.00023287,5]
[336633678,1724985050014,-500.0,0.00023287,5]
[336633679,1724985050024,-324.11692996,0.00023287,5]
[336633680,1724985050034,-643.25,0.00023287,5]
[336633681,1724985050044,-1003.4,0.00023287,5]
[336633682,1724985050054,-500.0,0.00023287,5]
[336633683,1724985050064,-500.0,0.00023287,5]
[336633684,1724985050074,-500.0,0.00023287,5]
[336633685,1724985050084,-500.0,0.00023287,5]
[336633686,1724985050094,-500.0,0.00023287,5]
[336633687,1724985050104,-500.0,0.00023287,5]
[336633688,1724985050114,-1695.59,0.00023287,5]
[336633689,1724985050123,-1157.42,0.00023287,5]
[336633690,1724985050134,-2823.37,0.00023287,5]
[336633691,1724985050144,-929.65,0.00023287,5]
[336633692,1724985050153,-2574.6,0.00023287,5]
[336633693,1724985050163,-1181.31,0.00023287,5]
[336633694,1724985050173,-748.14,0.00023287,5]
[336633695,1724985050183,-625.53,0.00023287,5]
[336633696,1724985050193,-500.0,0.00023287,5]
[336633697,1724985050203,-500.0,0.00023287,5]
[336633698,1724985050212,-1287.91,0.00023287,5]
[336633699,1724985050223,-500.0,0.00023287,5]
[336633700,1724985050234,-712.59,0.00023287,5]
[336633701,1724985050244,-852.72,0.00023287,5]
[336633702,1724985050253,-1443.6,0.00023287,5]
[336633703,1724985050264,-5238.51,0.00023287,5]
[336633704,1724985050274,-163.581734,0.00023369,2]
[336633705,1724985050284,-163.581734,0.00023369,2]
[336633706,1724985050294,-174.931623,0.00023369,2]
[336633707,1724985050304,-173.846975,0.00023369,2]
[336633708,1724985050314,-173.846975,0.00023369,2]
[336633709,1724985050324,-261.730774,0.00023369,2]
[336633710,1724985050334,-278.155159,0.00023369,2]
[336633711,1724985050346,-800.0,0.00023425,2]
[336633712,1724985050357,-500.0,0.00023446,2]
[336633713,1724985050368,-1500.0,0.00023454,2]
[336633714,1724985050378,-500.0,0.00023526,2]
[336633715,1724985050387,-500.0,0.00023539,2]
[336633716,1724985050398,-500.0,0.00023546,2]
[336633717,1724985050408,-823.0,0.0002355,2]
[336633718,1724985050418,-500.0,0.00023556,2]
[336633719,1724985050428,-600.03,0.00023561,5]
[336633720,1724985050437,-157.673856,0.00023561,7]
[336633721,1724985050447,-151.0,0.00023561,7]
[336633722,1724985050466,-518.49,0.00023561,5]
[336633723,1724985050477,-239.665147,0.00023561,7]
[336633724,1724985050487,-500.0,0.00023561,5]
[336633725,1724985050566,-509.23,0.00023561,5]
[336633726,1724985050575,-500.0,0.00023561,5]
[336633727,1724985050584,-500.0,0.00023561,5]
[336633728,1724985050594,-1439.09,0.00023561,5]
[336633729,1724985050605,-1551.79,0.00023561,5]
[336633730,1724985050615,-1161.98,0.00023561,5]
[336633731,1724985050624,-500.0,0.00023561,5]
[336633732,1724985050638,-643.25,0.00023561,5]
[336633733,1724985050648,-1003.4,0.00023561,5]
[336633734,1724985050659,-500.0,0.00023561,5]
[336633735,1724985050669,-304.46230549,0.00023561,5]
[336633736,1724985050678,-500.0,0.00023561,5]
[336633737,1724985050687,-500.0,0.00023561,5]
[336633738,1724985050697,-500.0,0.00023561,5]
[336633739,1724985050708,-500.0,0.00023561,5]
[336633740,1724985050717,-1695.59,0.00023561,5]
[336633741,1724985050728,-1157.42,0.00023561,5]
[336633742,1724985050739,-2823.37,0.00023561,5]
[336633743,1724985050750,-929.65,0.00023561,5]
[336633744,1724985050761,-2574.6,0.00023561,5]
[336633745,1724985050772,-1181.31,0.00023561,5]
[336633746,1724985050783,-748.14,0.00023561,5]
[336633747,1724985050792,-625.53,0.00023561,5]
[336633748,1724985050801,-500.0,0.00023561,5]
[336633749,1724985050811,-151.34265332,0.00023561,5]
[336633750,1724985050820,-1287.91,0.00023561,5]
[336633751,1724985050829,-500.0,0.00023561,5]
[336633752,1724985050839,-712.59,0.00023561,5]
[336633753,1724985050850,-852.72,0.00023561,5]
[336633754,1724985050860,-1443.6,0.00023561,5]
[336633755,1724985050873,-5238.51,0.00023561,5]
[336633756,1724985050882,-500.0,0.00023589,2]
[336633757,1724985050891,-150.112233,0.000236,5]
[336633758,1724985050901,-150.112233,0.000236,3]
[336633759,1724985050911,-1000.0,0.00023651,2]
[336633760,1724985050921,-159.436109,0.00023688,2]
[336633761,1724985050930,-1000.00787723,0.00023694,2]
[336633762,1724985050939,-1000.0,0.00023712,2]
[336633763,1724985050949,-1000.0,0.00023751,2]
[336633764,1724985050958,-235.776794,0.00023799,2]
[336633765,1724985050968,-2261.74093328,0.00023799,2]
[336633766,1724985050976,-151.771625,0.000238,7]
[336633767,1724985050987,-500.0,0.000238,2]
[336633768,1724985050996,-3907.85057719,0.000238,2]
[336633769,1724985051006,-500.0,0.000238,2]
[336633770,1724985051015,-500.0,0.00023834,2]
[336633771,1724985051025,-600.03,0.00023835,5]
[336633772,1724985051035,-518.49,0.00023835,5]
[336633773,1724985051044,-500.0,0.00023835,5]
[336633774,1724985051053,-509.23,0.00023835,5]
[336633775,1724985051062,-500.0,0.00023835,5]
[336633776,1724985051072,-500.0,0.00023835,5]
[336633777,1724985051081,-1439.09,0.00023835,5]
[336633778,1724985051091,-1551.79,0.00023835,5]
[336633779,1724985051100,-1161.98,0.00023835,5]
[336633780,1724985051109,-500.0,0.00023835,5]
[336633781,1724985051120,-643.25,0.00023835,5]
[336633782,1724985051131,-1003.4,0.00023835,5]
[336633783,1724985051141,-500.0,0.00023835,5]
[336633784,1724985051152,-500.0,0.00023835,5]
[336633785,1724985051162,-500.0,0.00023835,5]
[336633786,1724985051171,-500.0,0.00023835,5]
[336633787,1724985051180,-500.0,0.00023835,5]
[336633788,1724985051195,-1695.59,0.00023835,5]
[336633789,1724985051206,-1157.42,0.00023835,5]
[336633790,1724985051215,-2823.37,0.00023835,5]
[336633791,1724985051224,-929.65,0.00023835,5]
[336633792,1724985051234,-2574.6,0.00023835,5]
[336633793,1724985051243,-1181.31,0.00023835,5]
[336633794,1724985051252,-748.14,0.00023835,5]
[336633795,1724985051261,-625.53,0.00023835,5]
[336633796,1724985051271,-404.77933625,0.00023835,5]
[336633797,1724985051280,-1287.91,0.00023835,5]
[336633798,1724985051290,-500.0,0.00023835,5]
[336633799,1724985051301,-712.59,0.00023835,5]
[336633800,1724985051312,-852.72,0.00023835,5]
[336633801,1724985051321,-1443.6,0.00023835,5]
[336633802,1724985051331,-150.112233,0.000239,4]
[336633803,1724985051341,-1065.15301338,0.00024,2]
[336633804,1724985051351,-800.0,0.00024006,2]
[336633805,1724985051360,-500.0,0.00024083,2]
[336633806,1724985051370,-150.112233,0.000241,3]
[336633807,1724985051381,-600.03,0.00024109,5]
[336633808,1724985051392,-151.0,0.00024109,7]
[336633809,1724985051404,-518.49,0.00024109,5]
[336633810,1724985051414,-500.0,0.00024109,5]